[Event "British Rapidplay Championship 2023"]
[Site "Mercure Bradford, Bankfield Hotel"]
[Date "2023.04.15"]
[Round "3.16"]
[White "Cheng, Louis"]
[Black "Raynes, Paul"]
[Result "1-0"]
[TimeControl "15 minutes plus 10 seconds per move"]
[WhiteElo "1617"]
[BlackElo "2077"]

1. e4 {[%clk 00:15:16]} {[%emt 00:00:02]} d6 {[%clk 00:15:19]} {[%emt
00:00:03]} 2. d4 {[%clk 00:15:20]} {[%emt 00:00:06]} Nf6 {[%clk 00:15:27]}
{[%emt 00:00:01]} 3. Nc3 {[%clk 00:15:21]} {[%emt 00:00:09]} g6 {[%clk
00:15:35]} {[%emt 00:00:01]} 4. Nf3 {[%clk 00:15:20]} {[%emt 00:00:11]} Bg7
{[%clk 00:15:34]} {[%emt 00:00:12]} 5. Be2 {[%clk 00:15:20]} {[%emt 00:00:09]}
O-O {[%clk 00:15:39]} {[%emt 00:00:06]} 6. O-O {[%clk 00:15:23]} {[%emt
00:00:07]} a6 {[%clk 00:15:38]} {[%emt 00:00:11]} 7. a4 {[%clk 00:14:59]}
{[%emt 00:00:33]} Nc6 {[%clk 00:15:21]} {[%emt 00:00:28]} 8. Be3 {[%clk
00:15:06]} {[%emt 00:00:04]} Re8 {[%clk 00:14:58]} {[%emt 00:00:32]} 9. h3
{[%clk 00:14:41]} {[%emt 00:00:35]} e5 {[%clk 00:13:54]} {[%emt 00:01:14]} 10.
d5 {[%clk 00:14:10]} {[%emt 00:00:40]} Ne7 {[%clk 00:13:59]} {[%emt 00:00:06]}
11. Qd2 {[%clk 00:13:29]} {[%emt 00:00:51]} Rf8 {[%clk 00:13:54]} {[%emt
00:00:15]} 12. Bh6 {[%clk 00:13:30]} {[%emt 00:00:08]} Ne8 {[%clk 00:13:39]}
{[%emt 00:00:26]} 13. Bxg7 {[%clk 00:13:33]} {[%emt 00:00:08]} Kxg7 {[%clk
00:13:20]} {[%emt 00:00:28]} 14. h4 {[%clk 00:12:03]} {[%emt 00:01:41]} h6
{[%clk 00:11:55]} {[%emt 00:01:35]} 15. Nh2 {[%clk 00:10:30]} {[%emt 00:01:43]}
Ng8 {[%clk 00:11:07]} {[%emt 00:00:57]} 16. h5 {[%clk 00:10:23]} {[%emt
00:00:17]} g5 {[%clk 00:10:32]} {[%emt 00:00:45]} 17. g4 {[%clk 00:09:46]}
{[%emt 00:00:46]} Ne7 {[%clk 00:10:01]} {[%emt 00:00:42]} 18. f3 {[%clk
00:09:15]} {[%emt 00:00:40]} c6 {[%clk 00:08:33]} {[%emt 00:01:38]} 19. Rfd1
{[%clk 00:08:15]} {[%emt 00:01:11]} cxd5 {[%clk 00:07:40]} {[%emt 00:01:04]} 20.
Nxd5 {[%clk 00:07:57]} {[%emt 00:00:26]} Nxd5 {[%clk 00:07:36]} {[%emt
00:00:15]} 21. Qxd5 {[%clk 00:07:34]} {[%emt 00:00:33]} Qb6+ {[%clk 00:07:23]}
{[%emt 00:00:23]} 22. Kg2 {[%clk 00:07:21]} {[%emt 00:00:20]} Be6 {[%clk
00:07:09]} {[%emt 00:00:27]} 23. Qd2 {[%clk 00:07:18]} {[%emt 00:00:12]} Rc8
{[%clk 00:06:47]} {[%emt 00:00:34]} 24. b3 {[%clk 00:07:12]} {[%emt 00:00:16]}
Qc5 {[%clk 00:05:52]} {[%emt 00:01:04]} 25. c4 {[%clk 00:06:49]} {[%emt
00:00:33]} a5 {[%clk 00:05:56]} {[%emt 00:00:06]} 26. Nf1 {[%clk 00:06:48]}
{[%emt 00:00:11]} f6 {[%clk 00:05:43]} {[%emt 00:00:23]} 27. Ne3 {[%clk
00:06:56]} {[%emt 00:00:02]} Rf7 {[%clk 00:05:48]} {[%emt 00:00:05]} 28. Rac1
{[%clk 00:06:51]} {[%emt 00:00:13]} Rfc7 {[%clk 00:05:34]} {[%emt 00:00:26]} 29.
Rc3 {[%clk 00:05:56]} {[%emt 00:01:05]} Qb6 {[%clk 00:05:12]} {[%emt 00:00:33]}
30. Rd3 {[%clk 00:05:50]} {[%emt 00:00:15]} Rc5 {[%clk 00:04:55]} {[%emt
00:00:27]} 31. Kg3 {[%clk 00:05:09]} {[%emt 00:00:51]} Qc7 {[%clk 00:05:02]}
{[%emt 00:00:03]} 32. Kf2 {[%clk 00:05:12]} {[%emt 00:00:06]} b6 {[%clk
00:05:09]} {[%emt 00:00:04]} 33. Nc2 {[%clk 00:05:03]} {[%emt 00:00:19]} Qc6
{[%clk 00:05:08]} {[%emt 00:00:12]} 34. Na3 {[%clk 00:05:10]} {[%emt 00:00:02]}
Qb7 {[%clk 00:04:10]} {[%emt 00:01:08]} 35. Nb5 {[%clk 00:05:15]} {[%emt
00:00:05]} Rxb5 {[%clk 00:04:11]} {[%emt 00:00:10]} 36. axb5 {[%clk 00:05:08]}
{[%emt 00:00:16]} Qc7 {[%clk 00:04:03]} {[%emt 00:00:18]} 37. Rxd6 {[%clk
00:04:38]} {[%emt 00:00:40]} Qc5+ {[%clk 00:03:57]} {[%emt 00:00:17]} 38. Qe3
{[%clk 00:04:36]} {[%emt 00:00:11]} Nxd6 {[%clk 00:01:41]} {[%emt 00:02:26]} 39.
Qxc5 {[%clk 00:04:37]} {[%emt 00:00:09]} Nxe4+ {[%clk 00:01:46]} {[%emt
00:00:05]} 40. fxe4 {[%clk 00:04:44]} {[%emt 00:00:04]} Rxc5 {[%clk 00:01:49]}
{[%emt 00:00:07]} 41. Rd6 {[%clk 00:04:51]} {[%emt 00:00:03]} Bf7 {[%clk
00:01:50]} {[%emt 00:00:09]} 42. Rxb6 {[%clk 00:04:56]} {[%emt 00:00:05]} a4
{[%clk 00:01:39]} {[%emt 00:00:21]} 43. bxa4 {[%clk 00:04:33]} {[%emt
00:00:32]} Bxc4 {[%clk 00:01:46]} {[%emt 00:00:03]} 44. Rc6 {[%clk 00:04:36]}
{[%emt 00:00:08]} 1-0

[Event "British Rapidplay Championship 2023"]
[Site "Mercure Bradford, Bankfield Hotel"]
[Date "2023.04.15"]
[Round "3.17"]
[White "Vijayakumar, Rishi"]
[Black "Patrick, Chaski"]
[Result "1-0"]
[TimeControl "15 minutes plus 10 seconds per move"]
[WhiteElo "1770"]
[BlackElo "2032"]

1. d4 {[%clk 00:15:18]} {[%emt 00:00:02]} f5 {[%clk 00:15:12]} {[%emt
00:00:07]} 2. Bg5 {[%clk 00:15:26]} {[%emt 00:00:02]} c6 {[%clk 00:15:21]}
{[%emt 00:00:02]} 3. h4 {[%clk 00:15:15]} {[%emt 00:00:20]} Qb6 {[%clk
00:15:22]} {[%emt 00:00:09]} 4. b3 {[%clk 00:15:08]} {[%emt 00:00:17]} e6
{[%clk 00:15:02]} {[%emt 00:00:30]} 5. Nf3 {[%clk 00:15:12]} {[%emt 00:00:06]}
d5 {[%clk 00:14:58]} {[%emt 00:00:14]} 6. e3 {[%clk 00:14:55]} {[%emt
00:00:28]} Nd7 {[%clk 00:15:05]} {[%emt 00:00:04]} 7. c4 {[%clk 00:14:59]}
{[%emt 00:00:07]} Ngf6 {[%clk 00:14:26]} {[%emt 00:00:48]} 8. Nbd2 {[%clk
00:14:57]} {[%emt 00:00:12]} Ne4 {[%clk 00:14:21]} {[%emt 00:00:14]} 9. Bd3
{[%clk 00:14:11]} {[%emt 00:00:56]} Bb4 {[%clk 00:12:34]} {[%emt 00:01:57]} 10.
a3 {[%clk 00:13:43]} {[%emt 00:00:38]} Bc3 {[%clk 00:11:16]} {[%emt 00:01:28]}
11. Rb1 {[%clk 00:09:52]} {[%emt 00:04:02]} O-O {[%clk 00:11:03]} {[%emt
00:00:18]} 12. Qc2 {[%clk 00:09:04]} {[%emt 00:01:02]} Ndf6 {[%clk 00:10:09]}
{[%emt 00:01:04]} 13. b4 {[%clk 00:07:20]} {[%emt 00:01:56]} Ng4 {[%clk
00:08:31]} {[%emt 00:01:47]} 14. O-O {[%clk 00:05:51]} {[%emt 00:01:38]} Bxd2
{[%clk 00:08:12]} {[%emt 00:00:29]} 15. Nxd2 {[%clk 00:05:55]} {[%emt
00:00:07]} Qc7 {[%clk 00:07:42]} {[%emt 00:00:40]} 16. Bf4 {[%clk 00:05:46]}
{[%emt 00:00:19]} Qd8 {[%clk 00:07:47]} {[%emt 00:00:05]} 17. f3 {[%clk
00:05:33]} {[%emt 00:00:23]} Nxd2 {[%clk 00:07:16]} {[%emt 00:00:41]} 18. Qxd2
{[%clk 00:05:38]} {[%emt 00:00:06]} Nf6 {[%clk 00:07:06]} {[%emt 00:00:20]} 19.
Qe2 {[%clk 00:05:29]} {[%emt 00:00:19]} Nh5 {[%clk 00:06:48]} {[%emt 00:00:28]}
20. g3 {[%clk 00:03:57]} {[%emt 00:01:42]} Nxf4 {[%clk 00:06:41]} {[%emt
00:00:16]} 21. exf4 {[%clk 00:04:05]} {[%emt 00:00:02]} Rf6 {[%clk 00:06:26]}
{[%emt 00:00:25]} 22. Qe5 {[%clk 00:03:50]} {[%emt 00:00:26]} Rg6 {[%clk
00:06:30]} {[%emt 00:00:06]} 23. Kf2 {[%clk 00:03:50]} {[%emt 00:00:10]} Bd7
{[%clk 00:06:15]} {[%emt 00:00:25]} 24. h5 {[%clk 00:03:50]} {[%emt 00:00:09]}
Rh6 {[%clk 00:06:12]} {[%emt 00:00:14]} 25. Rh1 {[%clk 00:03:50]} {[%emt
00:00:10]} Qf6 {[%clk 00:04:09]} {[%emt 00:02:13]} 26. g4 {[%clk 00:03:37]}
{[%emt 00:00:23]} Qxe5 {[%clk 00:04:13]} {[%emt 00:00:06]} 27. fxe5 {[%clk
00:03:18]} {[%emt 00:00:29]} g5 {[%clk 00:04:15]} {[%emt 00:00:08]} 28. gxf5
{[%clk 00:02:18]} {[%emt 00:01:10]} exf5 {[%clk 00:04:22]} {[%emt 00:00:02]} 29.
Rbg1 {[%clk 00:02:27]} {[%emt 00:00:01]} g4 {[%clk 00:04:21]} {[%emt 00:00:11]}
30. Be2 {[%clk 00:02:28]} {[%emt 00:00:09]} Rf8 {[%clk 00:04:27]} {[%emt
00:00:04]} 31. fxg4 {[%clk 00:02:05]} {[%emt 00:00:32]} fxg4+ {[%clk 00:04:37]}
{[%emt 00:00:01]} 32. Ke3 {[%clk 00:02:14]} {[%emt 00:00:01]} dxc4 {[%clk
00:04:40]} {[%emt 00:00:06]} 33. Bxg4 {[%clk 00:01:38]} {[%emt 00:00:46]} Bxg4
{[%clk 00:04:48]} {[%emt 00:00:02]} 34. Rxg4+ {[%clk 00:01:46]} {[%emt
00:00:01]} Kh8 {[%clk 00:04:54]} {[%emt 00:00:04]} 35. Rf4 {[%clk 00:01:40]}
{[%emt 00:00:17]} Rxf4 {[%clk 00:04:47]} {[%emt 00:00:17]} 36. Kxf4 {[%clk
00:01:48]} {[%emt 00:00:01]} Re6 {[%clk 00:04:55]} {[%emt 00:00:02]} 37. Kf5
{[%clk 00:01:56]} {[%emt 00:00:03]} Re8 {[%clk 00:05:04]} {[%emt 00:00:01]} 38.
e6 {[%clk 00:01:57]} {[%emt 00:00:08]} Kg7 {[%clk 00:04:23]} {[%emt 00:00:51]}
39. h6+ {[%clk 00:02:06]} {[%emt 00:00:01]} Kf8 {[%clk 00:04:16]} {[%emt
00:00:16]} 40. Kf6 {[%clk 00:02:15]} {[%emt 00:00:01]} Re7 {[%clk 00:03:40]}
{[%emt 00:00:47]} 41. Rg1 {[%clk 00:02:20]} {[%emt 00:00:04]} c3 {[%clk
00:03:47]} {[%emt 00:00:03]} 42. Rc1 {[%clk 00:02:23]} {[%emt 00:00:06]} Ke8
{[%clk 00:03:32]} {[%emt 00:00:25]} 43. Rxc3 {[%clk 00:02:30]} {[%emt
00:00:03]} Kd8 {[%clk 00:03:39]} {[%emt 00:00:04]} 44. Rg3 {[%clk 00:02:39]}
Re8 {[%clk 00:03:45]} {[%emt 00:00:04]} 45. Rg7 {[%clk 00:02:20]} {[%emt
00:00:29]} Rf8+ {[%clk 00:03:53]} {[%emt 00:00:02]} 46. Ke5 {[%clk 00:02:17]}
{[%emt 00:00:12]} Kc8 {[%clk 00:03:59]} {[%emt 00:00:05]} 47. e7 {[%clk
00:02:23]} {[%emt 00:00:04]} Re8 {[%clk 00:04:07]} {[%emt 00:00:02]} 48. Ke6
{[%clk 00:02:28]} {[%emt 00:00:05]} Kc7 {[%clk 00:04:11]} {[%emt 00:00:06]} 49.
Rf7 {[%clk 00:02:32]} {[%emt 00:00:06]} Rg8 {[%clk 00:04:08]} {[%emt 00:00:12]}
50. e8=Q+ {[%clk 00:02:33]} {[%emt 00:00:06]} 1-0

[Event "British Rapidplay Championship 2023"]
[Site "Mercure Bradford, Bankfield Hotel"]
[Date "2023.04.15"]
[Round "3.18"]
[White "Nicholson, Jim WR"]
[Black "Keerthi Kumar, Advait"]
[Result "1-0"]
[TimeControl "15 minutes plus 10 seconds per move"]
[WhiteElo "1958"]
[BlackElo "1742"]

1. d4 {[%clk 00:15:18]} Nf6 {[%clk 00:15:19]} {[%emt 00:00:02]} 2. Nf3 {[%clk
00:15:26]} {[%emt 00:00:02]} g6 {[%clk 00:15:29]} 3. Bg5 {[%clk 00:15:34]}
{[%emt 00:00:01]} Bg7 {[%emt 00:00:03]} 4. Nbd2 {[%clk 00:15:39]} {[%emt
00:00:04]} O-O {[%clk 00:15:45]} {[%emt 00:00:03]} 5. c3 {[%clk 00:15:42]}
{[%emt 00:00:07]} d6 {[%clk 00:15:53]} {[%emt 00:00:02]} 6. e4 {[%clk
00:15:47]} {[%emt 00:00:04]} b6 {[%clk 00:15:53]} {[%emt 00:00:11]} 7. Bd3
{[%clk 00:15:40]} {[%emt 00:00:16]} c5 {[%clk 00:16:02]} {[%emt 00:00:02]} 8.
dxc5 {[%clk 00:15:41]} {[%emt 00:00:09]} bxc5 {[%clk 00:16:11]} 9. O-O {[%clk
00:15:39]} {[%emt 00:00:12]} Bb7 {[%clk 00:16:20]} {[%emt 00:00:01]} 10. Qe2
{[%clk 00:15:40]} {[%emt 00:00:09]} Nc6 {[%clk 00:16:28]} {[%emt 00:00:03]} 11.
Rfe1 {[%clk 00:15:17]} {[%emt 00:00:33]} Qd7 {[%clk 00:16:32]} {[%emt
00:00:06]} 12. Rad1 {[%clk 00:15:16]} {[%emt 00:00:11]} Rad8 {[%clk 00:16:33]}
{[%emt 00:00:09]} 13. Bb5 {[%clk 00:14:42]} {[%emt 00:00:42]} h6 {[%clk
00:16:32]} {[%emt 00:00:11]} 14. Bh4 {[%clk 00:14:39]} {[%emt 00:00:13]} Qc7
{[%clk 00:16:39]} {[%emt 00:00:03]} 15. Nc4 {[%clk 00:14:12]} {[%emt 00:00:37]}
a6 {[%clk 00:16:28]} {[%emt 00:00:22]} 16. Ba4 {[%clk 00:14:13]} {[%emt
00:00:08]} Na5 {[%clk 00:15:56]} {[%emt 00:00:42]} 17. Bc2 {[%clk 00:12:36]}
{[%emt 00:01:48]} Nxc4 {[%clk 00:15:50]} {[%emt 00:00:17]} 18. Qxc4 {[%clk
00:12:45]} d5 {[%clk 00:15:49]} {[%emt 00:00:11]} 19. exd5 {[%clk 00:12:39]}
{[%emt 00:00:15]} Bxd5 {[%clk 00:15:57]} {[%emt 00:00:02]} 20. Qe2 {[%clk
00:12:42]} {[%emt 00:00:06]} Rfe8 {[%clk 00:15:18]} {[%emt 00:00:49]} 21. a3
{[%clk 00:12:25]} {[%emt 00:00:28]} Ng4 {[%clk 00:14:44]} {[%emt 00:00:44]} 22.
Bg3 {[%clk 00:12:24]} {[%emt 00:00:11]} Qb7 {[%clk 00:14:51]} {[%emt 00:00:02]}
23. Nh4 {[%clk 00:11:59]} {[%emt 00:00:34]} Nf6 {[%clk 00:14:26]} {[%emt
00:00:33]} 24. Bd3 {[%clk 00:11:31]} {[%emt 00:00:41]} Ra8 {[%clk 00:13:39]}
{[%emt 00:00:56]} 25. Bc4 {[%clk 00:10:24]} {[%emt 00:01:17]} e6 {[%clk
00:13:01]} {[%emt 00:00:49]} 26. Be5 {[%clk 00:09:35]} {[%emt 00:00:57]} g5
{[%emt 00:01:15]} 27. Nf3 {[%clk 00:09:43]} a5 {[%clk 00:10:37]} {[%emt
00:01:33]} 28. Bb5 {[%clk 00:09:03]} {[%emt 00:00:49]} Red8 {[%clk 00:10:12]}
{[%emt 00:00:36]} 29. a4 {[%clk 00:09:02]} {[%emt 00:00:11]} Ne8 {[%clk
00:07:07]} {[%emt 00:03:15]} 30. Bxg7 {[%clk 00:07:24]} {[%emt 00:01:50]} Nxg7
{[%clk 00:07:11]} {[%emt 00:00:04]} 31. c4 {[%clk 00:06:20]} {[%emt 00:01:16]}
Bxf3 {[%clk 00:07:05]} {[%emt 00:00:16]} 32. gxf3 {[%clk 00:06:08]} {[%emt
00:00:23]} Nf5 {[%clk 00:06:55]} {[%emt 00:00:19]} 33. Qe4 {[%clk 00:06:01]}
{[%emt 00:00:17]} Qc7 {[%clk 00:06:39]} {[%emt 00:00:25]} 34. Qg4 {[%clk
00:04:42]} {[%emt 00:01:26]} Nd4 {[%clk 00:06:30]} {[%emt 00:00:23]} 35. Kg2
{[%clk 00:04:36]} {[%emt 00:00:17]} Kh8 {[%clk 00:05:11]} {[%emt 00:01:23]} 36.
Qh5 {[%clk 00:04:21]} {[%emt 00:00:28]} Kh7 {[%clk 00:04:52]} {[%emt 00:00:30]}
37. Qg4 {[%clk 00:03:42]} {[%emt 00:00:49]} Rg8 {[%clk 00:04:28]} {[%emt
00:00:34]} 38. Qe4+ {[%clk 00:03:26]} {[%emt 00:00:25]} Rg6 {[%clk 00:03:53]}
{[%emt 00:00:47]} 39. Rxd4 {[%clk 00:03:00]} {[%emt 00:00:37]} cxd4 {[%clk
00:03:55]} {[%emt 00:00:08]} 40. Qxa8 {[%clk 00:03:05]} {[%emt 00:00:05]} g4
{[%clk 00:03:53]} {[%emt 00:00:11]} 41. Qe4 {[%clk 00:02:59]} {[%emt 00:00:16]}
gxf3+ {[%clk 00:03:51]} {[%emt 00:00:13]} 42. Kxf3 {[%clk 00:02:20]} {[%emt
00:00:49]} Qxh2 {[%clk 00:03:28]} {[%emt 00:00:33]} 43. Ke2 {[%clk 00:02:03]}
{[%emt 00:00:26]} Qh5+ {[%clk 00:03:19]} {[%emt 00:00:19]} 44. Kd2 {[%clk
00:02:07]} {[%emt 00:00:06]} Qg5+ {[%clk 00:03:08]} {[%emt 00:00:19]} 45. Kc2
{[%clk 00:02:12]} {[%emt 00:00:06]} Qc5 {[%clk 00:02:51]} {[%emt 00:00:28]} 46.
Qd3 {[%clk 00:01:52]} {[%emt 00:00:31]} Kh8 {[%clk 00:02:31]} {[%emt 00:00:29]}
47. Rh1 {[%clk 00:01:24]} {[%emt 00:00:37]} Rf6 {[%clk 00:01:53]} {[%emt
00:00:45]} 48. Qd2 {[%clk 00:01:17]} {[%emt 00:00:18]} d3+ {[%clk 00:01:45]}
{[%emt 00:00:22]} 49. Kb1 {[%clk 00:01:24]} {[%emt 00:00:02]} h5 {[%clk
00:01:11]} {[%emt 00:00:44]} 50. Qxd3 {[%clk 00:01:08]} {[%emt 00:00:26]} Kg7
{[%clk 00:00:32]} {[%emt 00:00:49]} 51. Rg1+ {[%clk 00:01:08]} {[%emt
00:00:10]} Rg6 {[%clk 00:00:41]} {[%emt 00:00:02]} 52. Rxg6+ {[%clk 00:01:09]}
{[%emt 00:00:09]} fxg6 {[%clk 00:00:49]} 53. Be8 {[%clk 00:01:00]} {[%emt
00:00:16]} Qg5 {[%clk 00:00:27]} {[%emt 00:00:35]} 54. Qd7+ {[%clk 00:01:05]}
{[%emt 00:00:05]} Kh6 {[%clk 00:00:19]} {[%emt 00:00:18]} 55. Qxe6 {[%clk
00:00:57]} {[%emt 00:00:18]} h4 {[%clk 00:00:26]} {[%emt 00:00:03]} 56. Qg8
{[%clk 00:00:51]} {[%emt 00:00:15]} Qf5+ {[%clk 00:00:30]} {[%emt 00:00:06]} 57.
Ka2 {[%clk 00:00:48]} {[%emt 00:00:12]} Kg5 {[%clk 00:00:34]} {[%emt 00:00:07]}
58. Qd5 {[%clk 00:00:43]} {[%emt 00:00:15]} h3 {[%clk 00:00:19]} {[%emt
00:00:25]} 59. Bc6 {[%clk 00:00:39]} {[%emt 00:00:14]} h2 {[%clk 00:00:26]}
{[%emt 00:00:03]} 60. Qg2+ {[%clk 00:00:38]} {[%emt 00:00:12]} Kf6 {[%clk
00:00:26]} {[%emt 00:00:06]} 61. Qxh2 {[%clk 00:00:44]} {[%emt 00:00:08]} Kg7
{[%clk 00:00:28]} {[%emt 00:00:07]} 62. Qg2 {[%clk 00:00:37]} {[%emt 00:00:17]}
Qf4 {[%clk 00:00:28]} {[%emt 00:00:09]} 63. Be4 {[%clk 00:00:38]} {[%emt
00:00:09]} Qf7 {[%clk 00:00:37]} {[%emt 00:00:01]} 64. Qxg6+ {[%clk 00:00:44]}
{[%emt 00:00:04]} 1-0

[Event "British Rapidplay Championship 2023"]
[Site "Mercure Bradford, Bankfield Hotel"]
[Date "2023.04.15"]
[Round "3.19"]
[White "Eckersley-Waites, Tom"]
[Black "Ganti, Shriaansh"]
[Result "1-0"]
[TimeControl "15 minutes plus 10 seconds per move"]
[WhiteElo "2304"]
[BlackElo "1831"]

1. e4 {[%clk 00:15:17]} {[%emt 00:00:03]} c6 {[%clk 00:15:17]} {[%emt
00:00:04]} 2. d4 {[%clk 00:15:21]} {[%emt 00:00:06]} d5 {[%clk 00:15:26]} 3. e5
{[%clk 00:15:30]} {[%emt 00:00:01]} c5 {[%clk 00:15:35]} 4. dxc5 {[%clk
00:15:38]} {[%emt 00:00:02]} Nc6 {[%clk 00:15:42]} {[%emt 00:00:03]} 5. a3
{[%clk 00:15:45]} {[%emt 00:00:03]} Nxe5 {[%clk 00:15:46]} {[%emt 00:00:06]} 6.
b4 {[%clk 00:15:52]} {[%emt 00:00:02]} Nf6 {[%clk 00:15:50]} {[%emt 00:00:07]}
7. Bb2 {[%clk 00:16:00]} {[%emt 00:00:02]} Ng6 {[%clk 00:15:55]} {[%emt
00:00:06]} 8. Nf3 {[%clk 00:15:00]} {[%emt 00:01:09]} a6 {[%clk 00:15:59]}
{[%emt 00:00:06]} 9. Bd3 {[%clk 00:14:10]} {[%emt 00:01:00]} Bg4 {[%clk
00:15:59]} {[%emt 00:00:10]} 10. h3 {[%clk 00:11:30]} {[%emt 00:02:49]} Bxf3
{[%clk 00:15:35]} {[%emt 00:00:34]} 11. Qxf3 {[%clk 00:11:37]} {[%emt
00:00:03]} e6 {[%clk 00:15:38]} {[%emt 00:00:08]} 12. g4 {[%clk 00:10:10]}
{[%emt 00:01:36]} Nh4 {[%clk 00:11:37]} {[%emt 00:04:12]} 13. Qg3 {[%clk
00:10:01]} {[%emt 00:00:19]} Ne4 {[%clk 00:10:38]} {[%emt 00:01:09]} 14. Bxe4
{[%clk 00:09:57]} {[%emt 00:00:13]} dxe4 {[%clk 00:10:46]} {[%emt 00:00:03]} 15.
Nd2 {[%clk 00:10:05]} {[%emt 00:00:01]} Be7 {[%clk 00:10:32]} {[%emt 00:00:24]}
16. Nxe4 {[%clk 00:04:32]} {[%emt 00:05:44]} Qd5 {[%clk 00:10:25]} {[%emt
00:00:16]} 17. Qd3 {[%clk 00:04:41]} {[%emt 00:00:02]} Qc6 {[%clk 00:10:24]}
{[%emt 00:00:10]} 18. O-O-O {[%clk 00:03:47]} {[%emt 00:01:05]} O-O {[%clk
00:10:05]} {[%emt 00:00:29]} 19. Qc3 {[%clk 00:03:05]} {[%emt 00:00:52]} f6
{[%clk 00:09:43]} {[%emt 00:00:33]} 20. Qc4 {[%clk 00:02:54]} {[%emt 00:00:20]}
b5 {[%clk 00:09:06]} {[%emt 00:00:46]} 21. Qe2 {[%clk 00:03:02]} {[%emt
00:00:02]} f5 {[%clk 00:08:32]} {[%emt 00:00:44]} 22. Nd6 {[%clk 00:02:56]}
{[%emt 00:00:17]} Bxd6 {[%clk 00:07:35]} {[%emt 00:01:07]} 23. Qxe6+ {[%clk
00:03:03]} {[%emt 00:00:03]} Kh8 {[%clk 00:07:37]} {[%emt 00:00:08]} 24. Qxd6
{[%clk 00:03:02]} {[%emt 00:00:11]} Qg2 {[%clk 00:05:56]} {[%emt 00:01:51]} 25.
Qh6 {[%clk 00:02:19]} {[%emt 00:00:53]} Rf7 {[%clk 00:05:53]} {[%emt 00:00:14]}
26. Qxh4 {[%clk 00:02:17]} {[%emt 00:00:11]} Kg8 {[%clk 00:05:33]} {[%emt
00:00:30]} 27. gxf5 {[%clk 00:01:56]} {[%emt 00:00:31]} h6 {[%clk 00:05:01]}
{[%emt 00:00:42]} 28. Rhg1 {[%clk 00:01:52]} {[%emt 00:00:13]} Qf3 {[%clk
00:04:59]} {[%emt 00:00:13]} 29. Qxh6 {[%clk 00:01:47]} {[%emt 00:00:15]} 1-0

[Event "British Rapidplay Championship 2023"]
[Site "Mercure Bradford, Bankfield Hotel"]
[Date "2023.04.15"]
[Round "3.20"]
[White "Ciuravin, Andrei"]
[Black "Sasikumar, Srivathsan"]
[Result "1-0"]
[TimeControl "15 minutes plus 10 seconds per move"]
[WhiteElo "2185"]
[BlackElo "1798"]

1. d4 {[%clk 00:15:19]} Nf6 {[%clk 00:15:14]} {[%emt 00:00:06]} 2. Bg5 {[%clk
00:15:26]} {[%emt 00:00:03]} d5 {[%clk 00:15:05]} {[%emt 00:00:19]} 3. Bxf6
{[%clk 00:15:33]} {[%emt 00:00:03]} exf6 {[%clk 00:15:07]} {[%emt 00:00:08]} 4.
e3 {[%clk 00:15:40]} {[%emt 00:00:03]} Bd6 {[%clk 00:14:43]} {[%emt 00:00:30]}
5. Nd2 {[%clk 00:15:47]} {[%emt 00:00:06]} O-O {[%clk 00:14:36]} {[%emt
00:00:18]} 6. Ne2 {[%clk 00:15:55]} {[%emt 00:00:02]} Re8 {[%clk 00:14:29]}
{[%emt 00:00:18]} 7. g3 {[%clk 00:16:02]} {[%emt 00:00:02]} c6 {[%clk
00:14:24]} {[%emt 00:00:16]} 8. Bg2 {[%clk 00:16:10]} {[%emt 00:00:01]} Bf5
{[%clk 00:14:22]} {[%emt 00:00:12]} 9. O-O {[%clk 00:16:16]} {[%emt 00:00:04]}
Qd7 {[%clk 00:14:20]} {[%emt 00:00:12]} 10. c4 {[%clk 00:16:15]} {[%emt
00:00:11]} Bh3 {[%clk 00:13:23]} {[%emt 00:01:06]} 11. cxd5 {[%clk 00:16:22]}
{[%emt 00:00:04]} Bxg2 {[%clk 00:13:22]} {[%emt 00:00:11]} 12. Kxg2 {[%clk
00:16:30]} {[%emt 00:00:02]} cxd5 {[%clk 00:13:22]} {[%emt 00:00:10]} 13. Nc3
{[%clk 00:16:37]} {[%emt 00:00:03]} Nc6 {[%clk 00:12:42]} {[%emt 00:00:51]} 14.
Nxd5 {[%clk 00:16:30]} {[%emt 00:00:16]} Bxg3 {[%clk 00:11:54]} {[%emt
00:00:58]} 15. Nxf6+ {[%clk 00:16:38]} {[%emt 00:00:02]} gxf6 {[%clk 00:11:28]}
{[%emt 00:00:36]} 16. hxg3 {[%clk 00:16:46]} {[%emt 00:00:03]} f5 {[%clk
00:10:58]} {[%emt 00:00:39]} 17. Qf3 {[%clk 00:16:30]} {[%emt 00:00:25]} Kg7
{[%clk 00:10:06]} {[%emt 00:01:03]} 18. Rac1 {[%clk 00:16:32]} {[%emt
00:00:07]} Rac8 {[%clk 00:08:55]} {[%emt 00:01:22]} 19. Rc5 {[%clk 00:16:13]}
{[%emt 00:00:29]} Ne7 {[%clk 00:08:55]} {[%emt 00:00:09]} 20. Nb3 {[%clk
00:16:13]} {[%emt 00:00:11]} b6 {[%clk 00:08:54]} {[%emt 00:00:11]} 21. Rcc1
{[%clk 00:16:13]} {[%emt 00:00:10]} Nd5 {[%clk 00:08:09]} {[%emt 00:00:54]} 22.
Rh1 {[%clk 00:15:23]} {[%emt 00:01:00]} Qb7 {[%clk 00:05:19]} {[%emt 00:02:57]}
23. Rhe1 {[%clk 00:14:10]} {[%emt 00:01:27]} h5 {[%clk 00:04:41]} {[%emt
00:00:48]} 24. Kh2 {[%clk 00:12:50]} {[%emt 00:01:30]} h4 {[%clk 00:04:26]}
{[%emt 00:00:24]} 25. gxh4 {[%clk 00:11:08]} {[%emt 00:01:53]} Re4 {[%clk
00:02:52]} {[%emt 00:01:43]} 26. Rg1+ {[%clk 00:08:09]} {[%emt 00:03:09]} Kf6
{[%clk 00:02:25]} {[%emt 00:00:38]} 27. Qh5 {[%clk 00:07:37]} {[%emt 00:00:42]}
Qb8+ {[%clk 00:01:16]} {[%emt 00:01:20]} 28. Rg3 {[%clk 00:07:39]} {[%emt
00:00:07]} 1-0